[Event "Late-Titled-Tuesday-Blitz-November-28-2023"]
[Site "Chess.com"]
[Date "2023.11.28"]
[Round "7"]
[White "Koksal06"]
[Black "mbojan"]
[Result "0-1"]
[WhiteElo "2627"]
[BlackElo "2859"]
[TimeControl "180+1"]
[EndTime "15:17:06 PST"]
[Termination "mbojan won by resignation"]

1. c4 {[%clk 0:03:00.9]} 1... a6 {[%clk 0:02:59.7]} 2. Nc3 {[%clk 0:03:01]} 2...
e6 {[%clk 0:02:54.5]} 3. e4 {[%clk 0:02:58.2]} 3... c5 {[%clk 0:02:54.8]} 4. Nf3
{[%clk 0:02:57.4]} 4... Qc7 {[%clk 0:02:51]} 5. d4 {[%clk 0:02:55.6]} 5... cxd4
{[%clk 0:02:51.6]} 6. Nxd4 {[%clk 0:02:56.5]} 6... Nf6 {[%clk 0:02:52.2]} 7. Be2
{[%clk 0:02:52.2]} 7... Bb4 {[%clk 0:02:50.6]} 8. f3 {[%clk 0:02:45.6]} 8... O-O
{[%clk 0:02:36.8]} 9. O-O {[%clk 0:02:45.3]} 9... d5 {[%clk 0:02:37.2]} 10. cxd5
{[%clk 0:02:07.6]} 10... Bxc3 {[%clk 0:02:31.6]} 11. bxc3 {[%clk 0:02:04.7]}
11... exd5 {[%clk 0:02:32.1]} 12. Bg5 {[%clk 0:01:53.5]} 12... Nbd7 {[%clk
0:02:24.7]} 13. exd5 {[%clk 0:01:30.1]} 13... Nxd5 {[%clk 0:02:23.4]} 14. c4
{[%clk 0:01:14.1]} 14... Qe5 {[%clk 0:02:20.8]} 15. cxd5 {[%clk 0:01:06.3]}
15... Qxg5 {[%clk 0:02:19]} 16. Nb3 {[%clk 0:00:46.6]} 16... Nf6 {[%clk
0:02:13.9]} 17. d6 {[%clk 0:00:29]} 17... Be6 {[%clk 0:02:13.5]} 18. f4 {[%clk
0:00:26.9]} 18... Qf5 {[%clk 0:01:53.4]} 19. Bf3 {[%clk 0:00:27]} 19... Rad8
{[%clk 0:01:50.5]} 20. Bxb7 {[%clk 0:00:19.9]} 20... Bxb3 {[%clk 0:01:49]} 21.
axb3 {[%clk 0:00:16.9]} 21... Qc5+ {[%clk 0:01:49.6]} 22. Kh1 {[%clk 0:00:15.6]}
22... Rxd6 {[%clk 0:01:50.3]} 23. Qe2 {[%clk 0:00:15.6]} 23... a5 {[%clk
0:01:47.1]} 24. Bf3 {[%clk 0:00:16.3]} 24... Re8 {[%clk 0:01:45.3]} 25. Qa2
{[%clk 0:00:14.7]} 25... Qb6 {[%clk 0:01:23.3]} 26. Qxa5 {[%clk 0:00:14.3]}
26... Qxb3 {[%clk 0:01:23.4]} 27. Qa4 {[%clk 0:00:14.7]} 27... Qb8 {[%clk
0:01:18.7]} 28. Rab1 {[%clk 0:00:14.9]} 28... Qd8 {[%clk 0:01:18.7]} 29. Rbd1
{[%clk 0:00:14.3]} 29... h6 {[%clk 0:01:17.9]} 30. g3 {[%clk 0:00:14.5]} 30...
Qb6 {[%clk 0:01:15.5]} 31. Rxd6 {[%clk 0:00:13.7]} 31... Qxd6 {[%clk 0:01:16.4]}
32. Kg2 {[%clk 0:00:13.1]} 32... Rb8 {[%clk 0:01:15.1]} 33. Rf2 {[%clk
0:00:12.5]} 33... Qc5 {[%clk 0:01:14.6]} 34. Qd1 {[%clk 0:00:10.7]} 34... Qb6
{[%clk 0:01:01.1]} 35. Rd2 {[%clk 0:00:10.7]} 35... Re8 {[%clk 0:00:55.1]} 36.
Rd6 {[%clk 0:00:09.8]} 36... Qc7 {[%clk 0:00:54.9]} 37. Rd2 {[%clk 0:00:09.6]}
37... Rc8 {[%clk 0:00:54.3]} 38. Rd3 {[%clk 0:00:07.8]} 38... h5 {[%clk
0:00:54.6]} 39. Rd2 {[%clk 0:00:07.7]} 39... g6 {[%clk 0:00:54.6]} 40. Qe2
{[%clk 0:00:07]} 40... Qc3 {[%clk 0:00:53.9]} 41. Qf2 {[%clk 0:00:07.1]} 41...
Ng4 {[%clk 0:00:49.2]} 42. Bxg4 {[%clk 0:00:07]} 42... hxg4 {[%clk 0:00:50.1]}
43. Qe2 {[%clk 0:00:06.6]} 43... Qc6+ {[%clk 0:00:45.5]} 44. Kf2 {[%clk
0:00:06]} 44... Re8 {[%clk 0:00:44.5]} 45. Qxg4 {[%clk 0:00:05.4]} 45... Qh1
{[%clk 0:00:42]} 46. Re2 {[%clk 0:00:02.6]} 46... Qxh2+ {[%clk 0:00:41.7]} 47.
Kf1 {[%clk 0:00:03.2]} 47... Qh1+ {[%clk 0:00:42.2]} 48. Kf2 {[%clk 0:00:03.5]}
48... Qh2+ {[%clk 0:00:41.4]} 49. Kf1 {[%clk 0:00:04.2]} 49... Rxe2 {[%clk
0:00:36]} 50. Qxe2 {[%clk 0:00:05.1]} 50... Qxg3 {[%clk 0:00:36.7]} 51. Qe8+
{[%clk 0:00:05.4]} 51... Kg7 {[%clk 0:00:37.1]} 52. Qe5+ {[%clk 0:00:06.2]}
52... Kh7 {[%clk 0:00:37.7]} 53. Qf6 {[%clk 0:00:06.6]} 53... Qd3+ {[%clk
0:00:36.5]} 54. Kf2 {[%clk 0:00:07.2]} 54... Qd5 {[%clk 0:00:36.5]} 55. Kg3
{[%clk 0:00:07.2]} 55... Qe6 {[%clk 0:00:32.6]} 56. Qh4+ {[%clk 0:00:06.8]}
56... Kg7 {[%clk 0:00:33.1]} 57. Qg5 {[%clk 0:00:07.2]} 57... Qf6 {[%clk
0:00:32.2]} 58. Kg4 {[%clk 0:00:07.8]} 58... Qa1 {[%clk 0:00:29.1]} 59. Kg3
{[%clk 0:00:07.6]} 59... Qg1+ {[%clk 0:00:28.9]} 60. Kf3 {[%clk 0:00:08.2]}
60... Qd1+ {[%clk 0:00:18.8]} 61. Ke3 {[%clk 0:00:08.3]} 61... Qh5 {[%clk
0:00:17.7]} 62. Ke4 {[%clk 0:00:08]} 62... Qe2+ {[%clk 0:00:16.6]} 63. Kd4
{[%clk 0:00:07.9]} 63... Qe6 {[%clk 0:00:16.8]} 64. Kd3 {[%clk 0:00:08.1]} 64...
f6 {[%clk 0:00:15.4]} 65. Qc5 {[%clk 0:00:06.9]} 65... Kh6 {[%clk 0:00:14.3]}
66. Qg1 {[%clk 0:00:06]} 66... f5 {[%clk 0:00:11.1]} 67. Qh2+ {[%clk 0:00:05.8]}
67... Kg7 {[%clk 0:00:11.5]} 68. Qh4 {[%clk 0:00:06.4]} 68... Qf6 {[%clk
0:00:09.6]} 69. Qh2 {[%clk 0:00:04.8]} 69... Qe7 {[%clk 0:00:08.7]} 70. Kd4
{[%clk 0:00:04.8]} 70... Qe4+ {[%clk 0:00:08.7]} 71. Kc5 {[%clk 0:00:05.4]}
71... Qe1 {[%clk 0:00:05.8]} 72. Kd6 {[%clk 0:00:04.6]} 72... Qe8 {[%clk
0:00:05.8]} 73. Kd5 {[%clk 0:00:04.7]} 73... Qe7 {[%clk 0:00:06.2]} 74. Kc6
{[%clk 0:00:05.1]} 74... Qe6+ {[%clk 0:00:06.6]} 75. Kc5 {[%clk 0:00:05.8]}
75... Qd7 {[%clk 0:00:06.5]} 76. Qh4 {[%clk 0:00:05.3]} 76... Qe8 {[%clk
0:00:05.3]} 77. Kd5 {[%clk 0:00:04.7]} 77... Qf7+ {[%clk 0:00:04.5]} 78. Kc5
{[%clk 0:00:04.6]} 78... Qf6 {[%clk 0:00:04.9]} 79. Qh2 {[%clk 0:00:05.3]} 79...
Qe6 {[%clk 0:00:04.9]} 80. Qh4 {[%clk 0:00:04.8]} 80... Kf7 {[%clk 0:00:05]} 81.
Qh7+ {[%clk 0:00:04.7]} 81... Ke8 {[%clk 0:00:05.5]} 82. Qh8+ {[%clk 0:00:04.9]}
82... Kd7 {[%clk 0:00:06.2]} 83. Qh7+ {[%clk 0:00:05.3]} 83... Qe7+ {[%clk
0:00:06.6]} 84. Qxe7+ {[%clk 0:00:04.9]} 84... Kxe7 {[%clk 0:00:07.5]} 85. Kd5
{[%clk 0:00:05.2]} 85... Kf6 {[%clk 0:00:08.1]} 86. Kd4 {[%clk 0:00:04.6]} 86...
g5 {[%clk 0:00:08.6]} 87. fxg5+ {[%clk 0:00:04]} 87... Kxg5 {[%clk 0:00:09]} 88.
Ke3 {[%clk 0:00:04.9]} 88... Kg4 {[%clk 0:00:09.8]} 89. Kf2 {[%clk 0:00:05.3]}
89... Kf4 {[%clk 0:00:10.5]} 90. Kg2 {[%clk 0:00:05.6]} 90... Ke3 {[%clk
0:00:11.1]} 91. Kg1 {[%clk 0:00:06.5]} 91... Kf3 {[%clk 0:00:11.4]} 92. Kf1
{[%clk 0:00:07.4]} 92... f4 {[%clk 0:00:12]} 93. Kg1 {[%clk 0:00:08.1]} 93...
Ke2 {[%clk 0:00:12.6]} 0-1

[Event "Late-Titled-Tuesday-Blitz-November-28-2023"]
[Site "Chess.com"]
[Date "2023.11.28"]
[Round "8"]
[White "whitemirrorninja"]
[Black "lluiss"]
[Result "1-0"]
[WhiteElo "2518"]
[BlackElo "2208"]
[TimeControl "180+1"]
[EndTime "15:19:58 PST"]
[Termination "whitemirrorninja won by resignation"]

1. f4 {[%clk 0:03:00.9]} 1... c5 {[%clk 0:02:57.9]} 2. Nf3 {[%clk 0:03:00.7]}
2... d6 {[%clk 0:02:57.7]} 3. e4 {[%clk 0:02:59.5]} 3... g6 {[%clk 0:02:56.8]}
4. d4 {[%clk 0:02:58.7]} 4... cxd4 {[%clk 0:02:55.8]} 5. Qxd4 {[%clk 0:02:59.6]}
5... Nf6 {[%clk 0:02:53]} 6. e5 {[%clk 0:02:53.5]} 6... dxe5 {[%clk 0:02:52.7]}
7. Qxd8+ {[%clk 0:02:52.5]} 7... Kxd8 {[%clk 0:02:53.6]} 8. Nxe5 {[%clk
0:02:52.1]} 8... Be6 {[%clk 0:02:41.9]} 9. Nc3 {[%clk 0:02:46.7]} 9... Nfd7
{[%clk 0:02:39.5]} 10. Nf3 {[%clk 0:02:43.9]} 10... Bg7 {[%clk 0:02:38.1]} 11.
Ng5 {[%clk 0:02:44.4]} 11... Nf8 {[%clk 0:02:29.1]} 12. Be3 {[%clk 0:02:39.8]}
12... h6 {[%clk 0:02:27]} 13. O-O-O+ {[%clk 0:02:37.7]} 13... Nbd7 {[%clk
0:02:18.9]} 14. Nxe6+ {[%clk 0:02:37.4]} 14... Nxe6 {[%clk 0:02:19.8]} 15. Bb5
{[%clk 0:02:37.2]} 15... Nf8 {[%clk 0:02:19]} 16. Rxd7+ {[%clk 0:02:37.8]} 16...
Nxd7 {[%clk 0:02:17.9]} 17. Rd1 {[%clk 0:02:38.4]} 1-0

[Event "Late-Titled-Tuesday-Blitz-November-28-2023"]
[Site "Chess.com"]
[Date "2023.11.28"]
[Round "8"]
[White "morte-negra"]
[Black "C_K_G"]
[Result "0-1"]
[WhiteElo "2003"]
[BlackElo "2177"]
[TimeControl "180+1"]
[EndTime "15:21:52 PST"]
[Termination "C_K_G won by resignation"]

1. e4 {[%clk 0:03:00.9]} 1... c5 {[%clk 0:03:00.1]} 2. Nf3 {[%clk 0:03:00.2]}
2... d6 {[%clk 0:03:00.6]} 3. d4 {[%clk 0:03:00.6]} 3... cxd4 {[%clk 0:03:01.2]}
4. Nxd4 {[%clk 0:03:01.2]} 4... Nf6 {[%clk 0:03:01.8]} 5. Nc3 {[%clk 0:03:01.5]}
5... a6 {[%clk 0:03:02.4]} 6. Rg1 {[%clk 0:03:01.5]} 6... e5 {[%clk 0:03:03]} 7.
Nb3 {[%clk 0:02:59.9]} 7... h5 {[%clk 0:03:03.5]} 8. h3 {[%clk 0:02:59.1]} 8...
h4 {[%clk 0:03:03.1]} 9. Be3 {[%clk 0:02:56.8]} 9... Be7 {[%clk 0:03:03]} 10.
Be2 {[%clk 0:02:56.3]} 10... Be6 {[%clk 0:03:03.5]} 11. Qd2 {[%clk 0:02:55.8]}
11... Nbd7 {[%clk 0:03:03.9]} 12. O-O-O {[%clk 0:02:55.3]} 12... Qc7 {[%clk
0:03:04.1]} 13. g4 {[%clk 0:02:49]} 13... hxg3 {[%clk 0:03:03.5]} 14. Rxg3
{[%clk 0:02:48.9]} 14... g6 {[%clk 0:03:00.2]} 15. Bg5 {[%clk 0:02:25.6]} 15...
b5 {[%clk 0:02:46.9]} 16. Kb1 {[%clk 0:02:23.4]} 16... b4 {[%clk 0:02:27.6]} 17.
Nd5 {[%clk 0:02:23]} 17... Bxd5 {[%clk 0:02:23.7]} 18. exd5 {[%clk 0:02:23.5]}
18... Ne4 {[%clk 0:02:19.5]} 19. Qe3 {[%clk 0:02:01.6]} 19... Nxg5 {[%clk
0:01:51.5]} 20. Rxg5 {[%clk 0:02:00.3]} 20... Bxg5 {[%clk 0:01:51.5]} 21. Qxg5
{[%clk 0:02:00.9]} 21... Rxh3 {[%clk 0:01:50.4]} 22. Bg4 {[%clk 0:02:01.5]}
22... Rh2 {[%clk 0:01:41.6]} 23. f4 {[%clk 0:01:59.3]} 23... Qxc2+ {[%clk
0:01:15.3]} 0-1

[Event "Late-Titled-Tuesday-Blitz-November-28-2023"]
[Site "Chess.com"]
[Date "2023.11.28"]
[Round "8"]
[White "liwadas82"]
[Black "DvaHrasta"]
[Result "0-1"]
[WhiteElo "2372"]
[BlackElo "2497"]
[TimeControl "180+1"]
[EndTime "15:21:56 PST"]
[Termination "DvaHrasta won by resignation"]

1. e4 {[%clk 0:03:00.9]} 1... c6 {[%clk 0:02:59.5]} 2. Nf3 {[%clk 0:03:00.8]}
2... d5 {[%clk 0:02:59.4]} 3. Nc3 {[%clk 0:03:01.7]} 3... Nf6 {[%clk 0:02:58.9]}
4. e5 {[%clk 0:03:01.2]} 4... Ne4 {[%clk 0:02:59]} 5. Ne2 {[%clk 0:03:01.5]}
5... Qb6 {[%clk 0:02:58.4]} 6. d4 {[%clk 0:03:01.3]} 6... f6 {[%clk 0:02:58.5]}
7. exf6 {[%clk 0:03:00.4]} 7... exf6 {[%clk 0:02:57.4]} 8. Ng3 {[%clk
0:02:53.4]} 8... Bg4 {[%clk 0:02:57.2]} 9. c3 {[%clk 0:02:42.6]} 9... Bd6 {[%clk
0:02:54.2]} 10. Bd3 {[%clk 0:02:39.2]} 10... Bxg3 {[%clk 0:02:52.1]} 11. hxg3
{[%clk 0:02:39.2]} 11... Nd7 {[%clk 0:02:49.1]} 12. Qc2 {[%clk 0:02:27.5]} 12...
O-O-O {[%clk 0:02:44.4]} 13. Be3 {[%clk 0:02:18.1]} 13... Rde8 {[%clk
0:02:39.8]} 14. O-O-O {[%clk 0:02:07.5]} 14... Nxg3 {[%clk 0:02:38.8]} 15. Rh4
{[%clk 0:02:07.6]} 15... h5 {[%clk 0:02:21.4]} 16. Bg6 {[%clk 0:01:48.2]} 16...
Re7 {[%clk 0:02:02.9]} 17. Bf4 {[%clk 0:01:47.9]} 17... Ne2+ {[%clk 0:01:58.7]}
18. Kb1 {[%clk 0:01:42.2]} 18... Nxf4 {[%clk 0:01:58.6]} 19. Rdh1 {[%clk
0:01:37.1]} 19... Re2 {[%clk 0:01:52.1]} 20. Qb3 {[%clk 0:01:22.1]} 20... Qxb3
{[%clk 0:01:47.8]} 21. axb3 {[%clk 0:01:23]} 21... Nxg6 {[%clk 0:01:45.3]} 0-1

[Event "Late-Titled-Tuesday-Blitz-November-28-2023"]
[Site "Chess.com"]
[Date "2023.11.28"]
[Round "8"]
[White "Alexei_Gubajdullin"]
[Black "Actuary44"]
[Result "0-1"]
[WhiteElo "2636"]
[BlackElo "2479"]
[TimeControl "180+1"]
[EndTime "15:22:43 PST"]
[Termination "Actuary44 won by resignation"]

1. d4 {[%clk 0:02:59.8]} 1... Nf6 {[%clk 0:02:59.7]} 2. Nf3 {[%clk 0:02:59.7]}
2... g6 {[%clk 0:03:00.4]} 3. Bf4 {[%clk 0:02:59.6]} 3... Bg7 {[%clk 0:03:00.7]}
4. e3 {[%clk 0:03:00.1]} 4... d6 {[%clk 0:03:01.2]} 5. Be2 {[%clk 0:03:00.6]}
5... O-O {[%clk 0:03:01.9]} 6. O-O {[%clk 0:03:01.2]} 6... Nfd7 {[%clk
0:03:02.8]} 7. h3 {[%clk 0:03:01.6]} 7... Nc6 {[%clk 0:03:03.4]} 8. Bh2 {[%clk
0:03:00.4]} 8... e5 {[%clk 0:03:03.8]} 9. c4 {[%clk 0:03:00.5]} 9... f5 {[%clk
0:03:03.3]} 10. Nc3 {[%clk 0:03:00.2]} 10... e4 {[%clk 0:03:01.6]} 11. Nd2
{[%clk 0:02:54.7]} 11... g5 {[%clk 0:03:01.4]} 12. Rb1 {[%clk 0:02:54.2]} 12...
Ne7 {[%clk 0:03:00.9]} 13. b4 {[%clk 0:02:53.9]} 13... Nf6 {[%clk 0:02:59]} 14.
Qb3 {[%clk 0:02:53.5]} 14... c6 {[%clk 0:02:58.7]} 15. c5+ {[%clk 0:02:52.6]}
15... d5 {[%clk 0:02:58.9]} 16. b5 {[%clk 0:02:52.5]} 16... Kh8 {[%clk
0:02:42.6]} 17. Bd6 {[%clk 0:02:44.2]} 17... Ne8 {[%clk 0:02:39.2]} 18. b6
{[%clk 0:02:20.7]} 18... Nxd6 {[%clk 0:02:27.2]} 19. cxd6 {[%clk 0:02:20.3]}
19... Qxd6 {[%clk 0:02:28.1]} 20. Na4 {[%clk 0:02:16.5]} 20... f4 {[%clk
0:02:17.3]} 21. Rfc1 {[%clk 0:02:05.3]} 21... fxe3 {[%clk 0:02:05.8]} 22. Qxe3
{[%clk 0:02:01.4]} 22... axb6 {[%clk 0:01:49.4]} 23. Nxb6 {[%clk 0:02:00.7]}
23... Rxa2 {[%clk 0:01:49.2]} 24. Bg4 {[%clk 0:01:54.1]} 24... Bxg4 {[%clk
0:01:45]} 25. hxg4 {[%clk 0:01:54]} 25... Qf4 {[%clk 0:01:43.1]} 26. Rd1 {[%clk
0:01:47.7]} 26... Qxg4 {[%clk 0:01:28.1]} 27. Rf1 {[%clk 0:01:37.7]} 27... Nf5
{[%clk 0:01:25.1]} 28. Qe1 {[%clk 0:01:36.5]} 28... Bxd4 {[%clk 0:01:23.2]} 29.
Nd7 {[%clk 0:01:34.6]} 29... Nh4 {[%clk 0:01:20.5]} 0-1

[Event "Late-Titled-Tuesday-Blitz-November-28-2023"]
[Site "Chess.com"]
[Date "2023.11.28"]
[Round "8"]
[White "Alimpic"]
[Black "KVAIDAN"]
[Result "0-1"]
[WhiteElo "2483"]
[BlackElo "2391"]
[TimeControl "180+1"]
[EndTime "15:22:54 PST"]
[Termination "KVAIDAN won by resignation"]

1. d4 {[%clk 0:02:55.2]} 1... e6 {[%clk 0:02:59.4]} 2. c4 {[%clk 0:02:54]} 2...
f5 {[%clk 0:02:59.7]} 3. Nf3 {[%clk 0:02:52.2]} 3... Nf6 {[%clk 0:03:00.1]} 4.
g3 {[%clk 0:02:52.8]} 4... d6 {[%clk 0:03:00.3]} 5. Bg2 {[%clk 0:02:52.3]} 5...
Be7 {[%clk 0:03:01.2]} 6. O-O {[%clk 0:02:52.8]} 6... O-O {[%clk 0:03:01.6]} 7.
Nc3 {[%clk 0:02:53]} 7... a5 {[%clk 0:03:02.2]} 8. Qc2 {[%clk 0:02:46.3]} 8...
Nc6 {[%clk 0:03:02.1]} 9. e4 {[%clk 0:02:42.7]} 9... Nb4 {[%clk 0:03:01.9]} 10.
Qb1 {[%clk 0:02:43.1]} 10... fxe4 {[%clk 0:03:02.3]} 11. Nxe4 {[%clk 0:02:44]}
11... Nxe4 {[%clk 0:03:01.8]} 12. Qxe4 {[%clk 0:02:44.9]} 12... e5 {[%clk
0:03:02.4]} 13. dxe5 {[%clk 0:01:40.4]} 13... Bf5 {[%clk 0:03:00.3]} 14. Qe2
{[%clk 0:01:34.5]} 14... Nc2 {[%clk 0:02:51.5]} 15. Bf4 {[%clk 0:01:32.2]} 15...
Nxa1 {[%clk 0:02:46.6]} 16. Rxa1 {[%clk 0:01:33.1]} 16... Bg4 {[%clk 0:02:46.6]}
17. exd6 {[%clk 0:01:29]} 17... Bxd6 {[%clk 0:02:44.9]} 18. Rd1 {[%clk
0:01:27.7]} 18... Qf6 {[%clk 0:02:35.8]} 19. Bxd6 {[%clk 0:01:00.7]} 19... cxd6
{[%clk 0:02:33.4]} 20. Rd3 {[%clk 0:00:56.9]} 20... Rae8 {[%clk 0:02:30.1]} 21.
Qd1 {[%clk 0:00:54.6]} 21... Qxb2 {[%clk 0:02:23.5]} 22. h3 {[%clk 0:00:54.3]}
22... Bxf3 {[%clk 0:02:19.6]} 23. Bxf3 {[%clk 0:00:52.7]} 23... Kh8 {[%clk
0:02:10.1]} 24. Rd2 {[%clk 0:00:49.1]} 24... Qb4 {[%clk 0:02:00.4]} 25. Bd5
{[%clk 0:00:48.6]} 25... b5 {[%clk 0:01:53.9]} 26. cxb5 {[%clk 0:00:47.7]} 26...
Qxb5 {[%clk 0:01:54.1]} 27. Kg2 {[%clk 0:00:47.7]} 27... Qc5 {[%clk 0:01:53.8]}
28. Qh5 {[%clk 0:00:42.9]} 28... Re5 {[%clk 0:01:47.9]} 0-1

[Event "Late-Titled-Tuesday-Blitz-November-28-2023"]
[Site "Chess.com"]
[Date "2023.11.28"]
[Round "8"]
[White "Ellaijio_B"]
[Black "GHANDEEVAM2003"]
[Result "0-1"]
[WhiteElo "2778"]
[BlackElo "3118"]
[TimeControl "180+1"]
[EndTime "15:23:04 PST"]
[Termination "GHANDEEVAM2003 won by resignation"]

1. d4 {[%clk 0:02:55.4]} 1... g6 {[%clk 0:02:59.3]} 2. Nf3 {[%clk 0:02:53.3]}
2... Bg7 {[%clk 0:03:00.2]} 3. g3 {[%clk 0:02:49.8]} 3... c5 {[%clk 0:02:59.1]}
4. d5 {[%clk 0:02:48.4]} 4... Nf6 {[%clk 0:02:58.1]} 5. c4 {[%clk 0:02:47.7]}
5... b5 {[%clk 0:02:57.1]} 6. cxb5 {[%clk 0:02:47]} 6... a6 {[%clk 0:02:57.1]}
7. bxa6 {[%clk 0:02:46.1]} 7... O-O {[%clk 0:02:56.9]} 8. Nc3 {[%clk 0:02:46.2]}
8... Qa5 {[%clk 0:02:55.9]} 9. Bg2 {[%clk 0:02:46.6]} 9... Nxd5 {[%clk 0:02:52]}
10. Qxd5 {[%clk 0:02:40.3]} 10... Bxc3+ {[%clk 0:02:51.5]} 11. Kf1 {[%clk
0:02:36.6]} 11... Bg7 {[%clk 0:02:38.8]} 12. Qxa8 {[%clk 0:02:33.6]} 12... Nc6
{[%clk 0:02:37.2]} 13. Bd2 {[%clk 0:02:27]} 13... Qb6 {[%clk 0:02:35.4]} 14. Bh3
{[%clk 0:01:18.8]} 14... Bxa6 {[%clk 0:02:29.9]} 15. Qxf8+ {[%clk 0:01:18]}
15... Kxf8 {[%clk 0:02:30.8]} 16. Bxd7 {[%clk 0:01:16.9]} 16... Qxb2 {[%clk
0:02:31.4]} 17. Kg2 {[%clk 0:01:09.5]} 17... Qb7 {[%clk 0:02:25]} 18. Bxc6
{[%clk 0:00:51.7]} 18... Qxc6 {[%clk 0:02:25.9]} 19. Rab1 {[%clk 0:00:50.3]}
19... f5 {[%clk 0:02:21.1]} 20. Rb8+ {[%clk 0:00:43.5]} 20... Kf7 {[%clk
0:02:21.1]} 21. e4 {[%clk 0:00:36.3]} 21... Qxe4 {[%clk 0:02:14.4]} 22. Re1
{[%clk 0:00:36.8]} 22... Qd5 {[%clk 0:02:14.1]} 23. Bg5 {[%clk 0:00:32.9]} 23...
e6 {[%clk 0:02:08.8]} 24. Reb1 {[%clk 0:00:25.2]} 24... h6 {[%clk 0:02:05.7]}
25. Be3 {[%clk 0:00:21.3]} 25... g5 {[%clk 0:02:05.7]} 26. R1b6 {[%clk
0:00:17.8]} 26... Be2 {[%clk 0:02:04.7]} 27. R6b7+ {[%clk 0:00:15.3]} 27... Kg6
{[%clk 0:02:04.4]} 28. Kg1 {[%clk 0:00:14.2]} 28... Qd1+ {[%clk 0:02:03.3]} 0-1

[Event "Late-Titled-Tuesday-Blitz-November-28-2023"]
[Site "Chess.com"]
[Date "2023.11.28"]
[Round "8"]
[White "FuenfgegenWilly"]
[Black "emeli_chess"]
[Result "1-0"]
[WhiteElo "2490"]
[BlackElo "2366"]
[TimeControl "180+1"]
[EndTime "15:23:18 PST"]
[Termination "FuenfgegenWilly won by resignation"]

1. e4 {[%clk 0:02:52.2]} 1... e5 {[%clk 0:02:58.8]} 2. Nc3 {[%clk 0:02:52.6]}
2... Nf6 {[%clk 0:02:58.3]} 3. f4 {[%clk 0:02:53.1]} 3... d5 {[%clk 0:02:58.3]}
4. fxe5 {[%clk 0:02:53.5]} 4... Nxe4 {[%clk 0:02:58.2]} 5. Nf3 {[%clk
0:02:54.2]} 5... Nxc3 {[%clk 0:02:51.6]} 6. bxc3 {[%clk 0:02:54.3]} 6... Be7
{[%clk 0:02:49.6]} 7. d4 {[%clk 0:02:55.2]} 7... O-O {[%clk 0:02:49.1]} 8. Bd3
{[%clk 0:02:55.5]} 8... f6 {[%clk 0:02:46.9]} 9. O-O {[%clk 0:02:56]} 9... Nc6
{[%clk 0:02:16.2]} 10. Qe1 {[%clk 0:02:33.7]} 10... fxe5 {[%clk 0:02:10]} 11.
dxe5 {[%clk 0:02:34.6]} 11... Bf5 {[%clk 0:01:53.8]} 12. Qg3 {[%clk 0:02:34]}
12... Bxd3 {[%clk 0:01:46.8]} 13. cxd3 {[%clk 0:02:33.8]} 13... g6 {[%clk
0:01:34.6]} 14. Bh6 {[%clk 0:02:32.4]} 14... Rf5 {[%clk 0:01:33.9]} 15. h4
{[%clk 0:02:01.3]} 15... Bf8 {[%clk 0:01:22.5]} 16. Bg5 {[%clk 0:02:00.9]} 16...
Qd7 {[%clk 0:01:22.3]} 17. d4 {[%clk 0:01:55.8]} 17... Nd8 {[%clk 0:01:10.9]}
18. h5 {[%clk 0:01:54.4]} 18... Ne6 {[%clk 0:01:06.6]} 19. hxg6 {[%clk
0:01:54.7]} 19... hxg6 {[%clk 0:01:06.4]} 20. Bf6 {[%clk 0:01:55.1]} 20... Qf7
{[%clk 0:00:37.4]} 21. Nh4 {[%clk 0:01:53.8]} 21... Rxf1+ {[%clk 0:00:32.9]} 22.
Rxf1 {[%clk 0:01:54.7]} 22... Kh7 {[%clk 0:00:24]} 23. Bg5 {[%clk 0:01:46.8]}
23... Qe8 {[%clk 0:00:20.1]} 24. Rf6 {[%clk 0:01:44.9]} 24... Bh6 {[%clk
0:00:18.5]} 25. Bxh6 {[%clk 0:01:42.9]} 25... Kxh6 {[%clk 0:00:17.3]} 26. Rxg6+
{[%clk 0:01:43.3]} 26... Kh7 {[%clk 0:00:17.3]} 27. Qg4 {[%clk 0:01:37.2]} 1-0

[Event "Late-Titled-Tuesday-Blitz-November-28-2023"]
[Site "Chess.com"]
[Date "2023.11.28"]
[Round "8"]
[White "Yurasova_Daria"]
[Black "oogee"]
[Result "1-0"]
[WhiteElo "2463"]
[BlackElo "2308"]
[TimeControl "180+1"]
[EndTime "15:23:22 PST"]
[Termination "Yurasova_Daria won by checkmate"]

1. c4 {[%clk 0:03:00.9]} 1... g6 {[%clk 0:02:57.3]} 2. Nc3 {[%clk 0:02:58.5]}
2... Bg7 {[%clk 0:02:56.7]} 3. Nf3 {[%clk 0:02:58.9]} 3... e5 {[%clk 0:02:55.5]}
4. e4 {[%clk 0:02:58.7]} 4... Nc6 {[%clk 0:02:52.4]} 5. d3 {[%clk 0:02:58.4]}
5... d6 {[%clk 0:02:52.1]} 6. Bg5 {[%clk 0:02:58]} 6... Nge7 {[%clk 0:02:49.4]}
7. h4 {[%clk 0:02:57.5]} 7... h6 {[%clk 0:02:46.8]} 8. Be3 {[%clk 0:02:56.9]}
8... O-O {[%clk 0:02:46.1]} 9. h5 {[%clk 0:02:56.8]} 9... g5 {[%clk 0:02:45.1]}
10. Qd2 {[%clk 0:02:49.4]} 10... f5 {[%clk 0:02:43.5]} 11. Bxg5 {[%clk
0:02:28.8]} 11... hxg5 {[%clk 0:02:40.6]} 12. Qxg5 {[%clk 0:02:29.7]} 12... Kh8
{[%clk 0:02:39]} 13. Nh4 {[%clk 0:02:23.3]} 13... Kh7 {[%clk 0:01:28.1]} 14. Ng6
{[%clk 0:02:15.1]} 14... Rg8 {[%clk 0:01:21.6]} 15. Nxe7 {[%clk 0:01:57.2]}
15... Qxe7 {[%clk 0:01:14.3]} 16. Qg6+ {[%clk 0:01:57.4]} 16... Kh8 {[%clk
0:01:13.3]} 17. Nd5 {[%clk 0:01:55.4]} 17... Qd8 {[%clk 0:00:57.2]} 18. h6
{[%clk 0:01:32.2]} 18... Bf8 {[%clk 0:00:50.7]} 19. Qf7 {[%clk 0:01:31.6]} 19...
Be7 {[%clk 0:00:16.6]} 20. Be2 {[%clk 0:01:13.7]} 20... Rf8 {[%clk 0:00:16]} 21.
Qg7# {[%clk 0:01:13.6]} 1-0